Cogmind - Beta 13 @@@ ROGUE MODE // 2024.04.09 @ 20:13:59 Player: JunkerBernd Result: Destroyed by Y-45 Defender with Beam Rifle Performance ------------- Evolutions (2) 1000 Regions Visited (3) 600 Robots Destroyed (50) 250 Value Destroyed (1266) 1266 Prototype IDs (5) 100 Alien Tech Used (0) 0 Bonus (4) 4 TOTAL SCORE: 3220 Bonus ------- High Alert Combat Kills 4 Cogmind --------- Core Integrity 0/550 Matter 236/300 Energy 100/100 System Corruption 0% Temperature Cool (18) Movement Core (200) Ox3 Location -8/Materials Parts ------- > --- POWER (1) -------- (None) > --- PROPULSION (3) --- (None) > --- UTILITY (3) ------ Medium Storage Unit > --- WEAPON (4) ------- (None) > --- INVENTORY (10) --- Ion Engine Light Treads Light Treads Large Storage Unit Large Matter Pod (0) Terrain Scanner Transport Network Coupler Targeting Computer Peak State ------------ > --- POWER ------------ Heavy Ion Engine > --- PROPULSION ------- Light Treads Light Treads Light Treads > --- UTILITY ---------- Medium Storage Unit Large Matter Pod Targeting Computer > --- WEAPON ----------- Medium Laser Rocket Launcher Rocket Launcher Rocket Launcher > --- INVENTORY -------- Ion Engine Light Treads Light Treads Large Storage Unit Large Matter Pod Terrain Scanner Transport Network Coupler Targeting Computer [Rating: 16] Favorites ----------- Power Ion Engine Engine Ion Engine Power Core Nuclear Core Propulsion Light Treads Treads Light Treads Utility Large Matter Pod Storage Large Matter Pod Processor Targeting Computer Weapon Rocket Launcher Energy Gun EM Pulse Gun Ballistic Gun High-powered Shotgun Launcher Rocket Launcher Build | -11 -10 -9 -8 ------- Run | Yrd Mat Mat Mat Slots Evolved 4 | . . 2 2 Power . | . . . . Propulsion 1 | . . . 1 Utility 1 | . . 1 . Weapon 2 | . . 1 1 Parts Attached 25 | 6 2 9 8 Power 3 | 1 . 1 1 Engine 2 | 1 . 1 . Core 1 | . . . 1 Reactor . | . . . . Propulsion 5 | 2 . . 3 Treads 5 | 2 . . 3 Leg . | . . . . Wheel . | . . . . Hover . | . . . . Flight . | . . . . Utility 4 | 1 1 2 . Device . | . . . . Storage 3 | 1 1 1 . Processor 1 | . . 1 . Hackware . | . . . . Protection . | . . . . Artifact . | . . . . Weapon 13 | 2 1 6 4 Energy Gun 4 | 2 1 1 . Energy Cannon . | . . . . Ballistic Gun 2 | . . . 2 Ballistic Cannon . | . . . . Launcher 7 | . . 5 2 Special Weapon . | . . . . Impact Weapon . | . . . . Slashing Weapon . | . . . . Piercing Weapon . | . . . . Special Melee Weapon . | . . . . Unidentified Prototypes . | . . . . Parts Lost 15 | . 1 . 14 Power 2 | . . . 2 Propulsion 3 | . . . 3 Utility 2 | . . . 2 Weapon 8 | . 1 . 7 Highest Loss Streak 8 | . 1 . 8 To Critical Strikes . | . . . . Average Slot Usage (%) 94 | . 99 99 76 Engine 11 | . 14 11 7 Treads 23 | . 28 22 17 Storage 23 | . 27 22 18 Processor 6 | . . 11 8 Energy Gun 12 | . 27 2 6 Launcher 16 | . . 30 15 Naked Turns . | . . . . Heaviest Build 35 | 14 17 33 35 Greatest Support 60 | 40 40 40 60 Greatest Overweight (x) 7 | 1 . . 7 Average Overweight (x) . | . . . . Largest Inventory Capacity 10 | 8 8 10 10 Average Capacity 9 | 7 8 9 10 Most Carried 10 | 6 8 10 10 Average Carried 8 | 3 6 9 8 Final Capacity 10 | 8 8 10 10 Final Carried 10 | 6 7 10 8 Class Distribution -------------------- 46% | Mutant 28% | Bomber 24% | Gunner Dominant Class ---------------- Mutant | -10/Materials Gunner | -9/Materials Bomber | -8/Materials Resources | -11 -10 -9 -8 ----------- Run | Yrd Mat Mat Mat Matter Collected 1047 | 191 226 204 426 Remotely . | . . . . Salvage Created 1415 | . 469 390 556 Parts 94 | . 36 35 23 Haulers Intercepted 4 | . 2 2 . Recyclers Shooed 4 | . . 2 2 Parts Field Recycled . | . . . . Retrieved Matter . | . . . . Parts Self-Destructed . | . . . . Prevented . | . . . . Kills | -11 -10 -9 -8 ------- Run | Yrd Mat Mat Mat Combat Hostiles Destroyed 28 | . 8 11 9 Guns 13 | . 6 . 7 AOE 15 | . 2 11 2 Classes Destroyed 13 | . 6 4 3 Worker 1 | . . . 1 Builder 3 | . . 1 2 Tunneler 4 | . 2 2 . Hauler 4 | . 2 2 . Recycler 3 | . . 1 2 Operator 1 | . 1 . . Watcher 6 | . 2 4 . Swarmer 6 | . 2 4 . Grunt 13 | . 6 2 5 Duelist 1 | . . 1 . Sentry 5 | . . 4 1 Specialist 2 | . . . 2 Heavy 1 | . . . 1 Best Kill Streak 7 | . 3 4 7 Combat Bots Only 4 | . 2 4 4 Max Kills in Single Turn 4 | . 1 4 2 Gunslinging . | . . . . Exploded 4 | . 1 4 2 Melee . | . . . . Uniques/NPCs Destroyed . | . . . . Combat | -11 -10 -9 -8 -------- Run | Yrd Mat Mat Mat Hostile Shots Fired 186 | . 29 25 132 Missed 64 | . 7 10 47 Damage Taken 2234 | . 246 268 1720 Core 614 | . 55 . 559 Absorbed by Shields . | . . . . Core Remaining (%) 92 | 100 78 100 . Volleys Fired 107 | . 32 28 47 Largest 4 | . 2 3 4 Hottest 149 | . 80 99 149 Shots Fired 189 | . 59 62 68 Gun 124 | . 59 11 54 Cannon . | . . . . Launcher 65 | . . 51 14 Special . | . . . . Kinetic 28 | . . . 28 Thermal 37 | . . 11 26 Explosive 65 | . . 51 14 Electromagnetic 59 | . 59 . . Robot Hit Streak 8 | . 6 7 8 Robot Miss Streak 6 | . 4 3 6 Penetration Max . | . . . . Secondary Targets 3 | . 2 . 1 Max Gunslinging Chain 1 | . 1 . 1 Shots Hit Robots 113 | . 34 27 52 Core Hits 91 | . 19 39 33 Critical Kills . | . . . . Critical Parts Destroyed . | . . . . Critical Strikes 4 | . 1 1 2 Burn 3 | . . 1 2 Corrupt 1 | . 1 . . Melee Attacks . | . . . . Impact . | . . . . Slashing . | . . . . Piercing . | . . . . Sneak Attacks . | . . . . Combat Hostiles . | . . . . Follow-up Attacks . | . . . . Damage Inflicted 3511 | 4 617 1861 1029 Guns 1301 | . 454 113 734 Cannons . | . . . . Explosions 2159 | . 160 1723 276 Melee . | . . . . Ramming 51 | 4 3 25 19 Kinetic 498 | . . . 498 Thermal 509 | . 160 113 236 Explosive 1999 | . . 1723 276 Electromagnetic 454 | . 454 . . Impact . | . . . . Slashing . | . . . . Piercing . | . . . . Highest Corruption 1 | . 1 . . Average Corruption 1 | . 1 . . Corruption Purged . | . . . . Corruption Blocked . | . . . . Effects 1 | . 1 . . Message Errors 1 | . 1 . . Overload Shots . | . . . . Overflow Damage 109 | . 17 92 . Projectiles . | . . . . Explosions 109 | . 17 92 . Melee . | . . . . Knockbacks 1 | . . . 1 Impact 1 | . . . 1 Kinetic . | . . . . Secondary . | . . . . Self-Inflicted Damage 158 | . 40 79 39 Shots 5 | . 1 3 1 Rammed 14 | 2 1 5 6 Targets Rammed 15 | 2 2 5 6 Kicked . | . . . . Crushed 1 | . 1 . . Highest Temperature 250 | . 144 75 250 Average Temperature 54 | . 48 27 102 Received Heat Transfer 696 | . 72 57 567 Siege Activations . | . . . . Robots Corrupted . | . . . . Combat Hostiles . | . . . . Parts Fried 3 | . 3 . . Impact Corruptions . | . . . . Robots Melted . | . . . . Combat Hostiles . | . . . . Parts Melted . | . . . . Heat Transferred 1458 | . 200 407 851 Parts Sabotaged . | . . . . Parts Stolen . | . . . . Parts Stripped . | . . . . Power Chain Reactions 4 | . 4 . . Alert | -11 -10 -9 -8 ------- Run | Yrd Mat Mat Mat Peak Influence 472 | . 191 472 349 Initial 144 | . . 56 144 Average 168 | . 55 250 224 Maximum Alert Level 2 | . . 2 1 Low Security (%) 61 | 100 100 34 43 Level 1 31 | . . 47 56 Level 2 7 | . . 17 . Level 3 . | . . . . Level 4 . | . . . . Level 5 . | . . . . High Security . | . . . . Max Security . | . . . . Squads Dispatched 10 | . 4 1 5 Investigation 3 | . 3 . . Extermination . | . . . . Reinforcement 6 | . 1 1 4 Assault . | . . . . Garrison 1 | . . . 1 Intercept . | . . . . Searches Triggered . | . . . . Construction Impeded 1 | . . . 1 Haulers Reinforced . | . . . . Active Scanning Responses . | . . . . Cargo Convoy Interrupts . | . . . . Stealth | -11 -10 -9 -8 --------- Run | Yrd Mat Mat Mat Distress Signals 3 | . . 3 . Communications Jammed . | . . . . Distress Signals . | . . . . Times Spotted 49 | . 12 19 18 Peak Tracking Total 5 | . 3 5 5 Tactical Retreats 1 | . 1 . . Traps | -11 -10 -9 -8 ------- Run | Yrd Mat Mat Mat Traps Triggered 1 | . 1 . . Indirectly . | . . . . Trap Hack Attempts . | . . . . Triggered . | . . . . Disarmed . | . . . . Reprogrammed . | . . . . Reused . | . . . . Traps Extracted . | . . . . Installed . | . . . . Triggered . | . . . . Machines | -11 -10 -9 -8 ---------- Run | Yrd Mat Mat Mat Machines Disabled 7 | . 1 6 . Max in Single Turn 2 | . 1 2 . Machines Repaired . | . . . . Machines Dismantled . | . . . . Machines Sabotaged . | . . . . Overloaded Fab Kills . | . . . . Hacking | -11 -10 -9 -8 --------- Run | Yrd Mat Mat Mat Machines Accessed 12 | . 5 6 1 Terminals 9 | . 5 4 . Fabricators . | . . . . Repair Stations 1 | . . 1 . Recycling Units 1 | . . . 1 Scanalyzers 1 | . . 1 . Garrison Access . | . . . . Total Hacks 31 | . 14 14 3 Successful 17 | . 7 8 2 Failed 14 | . 7 6 1 Catastrophic 1 | . . 1 . Database Lockouts . | . . . . Manual . | . . . . Terminals 22 | . 14 8 . Fabricators . | . . . . Repair Stations 2 | . . 2 . Recycling Units 3 | . . . 3 Scanalyzers 4 | . . 4 . Garrison Access . | . . . . Terminal Hacks 10 | . 7 3 . Record 1 | . 1 . . Prototype ID Bank 3 | . 3 . . Recycling Unit Index 1 | . 1 . . Unreport Threat 1 | . . 1 . Locate Traps 1 | . . 1 . Surveillance Status 1 | . 1 . . Hauler Manifests 1 | . 1 . . Zone Layout 1 | . . 1 . Fabricator Hacks . | . . . . Repair Station Hacks 1 | . . 1 . Scan Component 1 | . . 1 . Recycling Unit Hacks 2 | . . . 2 Process 1 | . . . 1 Retrieve Matter 1 | . . . 1 Scanalyzer 4 | . . 4 . Insert Component 2 | . . 2 . Analyze 2 | . . 2 . Garrison Access Hacks . | . . . . Unauthorized Hacks . | . . . . Terminals . | . . . . Fabricators . | . . . . Repair Stations . | . . . . Recycling Units . | . . . . Scanalyzers . | . . . . Garrison Access . | . . . . Data Cores Recovered 1 | . 1 . . Used 1 | . 1 . . Hacking Detections 9 | . 4 5 . Full Trace Events 4 | . 3 1 . Feedback Events 1 | . 1 . . Corruption 1 | . 1 . . Feedback Blocked . | . . . . Robot Schematics Acquired . | . . . . Robots Built . | . . . . Authchips . | . . . . Time . | . . . . Total Robot Build Rating . | . . . . Part Schematics Acquired 2 | . . 2 . Parts Built . | . . . . Authchips . | . . . . Time . | . . . . Total Part Build Rating . | . . . . Parts Repaired . | . . . . Time . | . . . . Parts Recycled . | . . . . Recycled Matter 43 | . . . 43 Retrieved Matter 43 | . . . 43 Retrieved Components . | . . . . Parts Scanalyzed 2 | . . 2 . Part Schematics Acquired 2 | . . 2 . Parts Damaged . | . . . . Bothacking | -11 -10 -9 -8 ------------ Run | Yrd Mat Mat Mat Used RIF Installer . | . . . . Robots Hacked . | . . . . Non-combat . | . . . . Combat . | . . . . Robot Hacks Applied . | . . . . Relay Couplers Released . | . . . . Fabnet Peak Effective % . | . . . . Robots Rewired . | . . . . Allies Hacked . | . . . . Hacks Repelled . | . . . . Allies | -11 -10 -9 -8 -------- Run | Yrd Mat Mat Mat Total Allies . | . . . . Largest Group . | . . . . Highest-Rated Group . | . . . . Highest-Rated Ally . | . . . . Total Orders . | . . . . Ally Attacks . | . . . . Total Damage . | . . . . Kills . | . . . . Allies Corrupted . | . . . . Allies Melted . | . . . . Intel | -11 -10 -9 -8 ------- Run | Yrd Mat Mat Mat Robot Analysis Total . | . . . . Derelict Logs Recovered . | . . . . Drone Launches . | . . . . Drone Recoveries . | . . . . Exploration | -11 -10 -9 -8 ------------- Run | Yrd Mat Mat Mat Turns Passed 2317 | 90 796 969 462 Spaces Moved 1169 | 47 426 510 186 Core 16 | 3 . . 13 Treads 1153 | 44 426 510 173 Legs . | . . . . Wheels . | . . . . Hover . | . . . . Flight . | . . . . Fastest Speed 50 | 50 160 160 160 Average Speed 161 | 155 160 160 173 Slowest Speed 400 | 160 160 160 400 Overloaded Moves . | . . . . Propulsion Burnouts . | . . . . Robots Hopped . | . . . . Cave-ins Triggered . | . . . . Exploration Rate (%) 30 | 3 52 50 18 Regions Visited 3 Branch Regions . Pre-discovered Areas . | . . . . Known Exits Taken . | . . . . Unknown Exits Taken 3 | 1 1 1 . Scrap Searched . | . . . . Spaces Dug . | . . . . Terrain Destroyed 398 | . 14 321 63 Melee . | . . . . Projectile . | . . . . AOE 398 | . 14 321 63 Terrain Rammed . | . . . . Walls Destroyed . | . . . . Machines Disabled . | . . . . Actions | -11 -10 -9 -8 --------- Run | Yrd Mat Mat Mat Total 1408 | 60 481 612 255 Wait 67 | . 12 47 8 Move 1166 | 46 425 509 186 Hop . | . . . . Pick Up 16 | 6 5 5 . Fast Attach 16 | 6 1 5 4 Attach 5 | . 1 1 3 Detach 2 | . . 2 . Swap 4 | . . 3 1 Drop 10 | . 3 7 . Fire 107 | . 32 28 47 Melee . | . . . . Ram 3 | . . . 3 Kick . | . . . . Crush 12 | 2 2 5 3 Escape Stasis . | . . . . Rewire . | . . . . Trap . | . . . . Miscellaneous . | . . . . Route ------- -11/Scrapyard -10/Materials (discovered 2 exits: *Mat x2) -9/Materials -8/Materials History --------- Turn | Location | Event 33 | -11/Scrapyard | Discovered new exit (range 15) 91 | -11/Scrapyard | Entered Materials 307 | -10/Materials | Build established: Mutant 473 | -10/Materials | Discovered new exit (range 15) 804 | -10/Materials | Discovered new exit (range 10) 887 | -10/Materials | Entered another Materials area 887 | -9/Materials | Evolved 2 slots: Utility x1, Weapon x1 1194 | -9/Materials | Build established: Gunner 1760 | -9/Materials | Build established: Bomber 1777 | -9/Materials | Discovered new exit (range 15) 1856 | -9/Materials | Entered another Materials area 1856 | -8/Materials | Evolved 2 slots: Propulsion x1, Weapon x1 2251 | -8/Materials | Garrison activated, responded to threat 2267 | -8/Materials | Lost 8 parts (1p2n5w) 2295 | -8/Materials | Core integrity fell below 50% 2314 | -8/Materials | Core integrity fell below 20% 2318 | -8/Materials | Destroyed by Y-45 Defender with Beam Rifle Last Messages --------------- 02301_ Y-45 Defender suffers critical hit (Burn). 02301_ U-05 Engineer builds a Wall. 02301_ K-01 Serf collects debris. 02303_ Targeting Computer destroyed. 02304_ K-01 Serf collects debris. 02306_ U-05 Engineer lays Concrete. 02306_ Nuclear Core destroyed. 02307_ U-05 Engineer lays Concrete. 02307_ K-01 Serf collects debris. 02308_ Acquired 18 matter. 02308_ U-05 Engineer builds a Door. 02309_ Hpw. Shotgun destroyed. 02310_ Critical hit (Burn: +37). 02310_ K-01 Serf collects debris. 02311_ Lrg. Matter Pod destroyed. 02313_ U-05 Engineer lays Concrete. 02314_ U-05 Engineer builds a Wall. 02315_ Critical hit (Burn: +37). 02315_ Slammed into G-47 Trooper. 02318_ U-05 Engineer lays Concrete. Map ----- +----------------------------------------------------+ | ??????????????????????????????????????????? | | ??????????????????????????????????????????? | | ??????????????????????????????????????????? | | ??????????????????????????????????????????? | | ??????????????????????????????????????????? | | ??????????????????????????????????????????? | | ??????????????????????????????????????????? | | ??????????????????????????????????????????? | | ??????????????????????????????????????????? | | ??????????????????????????????????????????? | | ??????????????????????????????????????????? | | ??????????????????????????????????????????? | | ??????????????????????????????????????????? | | ??????????????????????????????????????????? | | ???????????????"??????????????????????????? | | ??????????????? ??????????????????????????? | | ???????????####+##????????????????????????? | | ???# ?????[ # #????????????????????????? | | ???# "T"??? # #???????? ???????????????? | | ???# """ + #????? +??!?????????????? | | ???# = """ # ##### # !!?????????????? | | ???# """ # # # # ????????????? | | ???# """ # ## !# # #??????????????? | | ????? """ # ### # #?????????????? | | ???????? % %# ||% gY% # #???????????? | | ########+##### =%!@kY #???????????????? | | #] # ! =[| * g # #???????????? | | # "" # #####;# # # #????????????? | | # Y" + %# ###u######????????????? | | #[ "" # ## * # ????????????? | | # # ## #? ?????????????? | | # """ # ## ] #?? ????????????? | | # """ # ## #???? ? #???????????? | | # """ # ## #????? ??????????????? | | # # ## #?????????????????????? | | ####### ## #?????????????????????? | | ####### ## #?????????????????????? | | # # ###########?????????????????????? | | # ! # #???????????????????????????????? | | # # #?????#######???????????????????? | | # # ####### ######??????????????? | | # # ???????????????? | | # + [ ?????????????????? | | # !! # ?????????????????? | | # !! ]### ####### #???????????????????? | | # ###+######## #????????????????????? | | # # # #????????????????????? | | # # + #????????????????????? | | # # # #????????????????????? | | ####### # #????????????????????? | +----------------------------------------------------+ Best States ------------- Heat Dissipation 31 Energy Generation 14 Energy Capacity 280 Matter Stores 450 Matter Capacity 450 Sight Range 16 Terrain Scan Density 10 Evasion (%) 40 Targeting Accuracy 5 Recoil Reduction 3 Item Schematics ----------------- Rocket Launcher | -9/Materials | Scanalyzed Lgt. Treads | -9/Materials | Scanalyzed Robot Schematics ------------------ None Fabricated ------------ Nothing Alien Tech Used ----------------- None Achievements -------------- None Challenges ------------ None Game ------ Seed SupersonicElectronMallet Manual? 0 Play Time 00:25:26 Cumulative 10.1 hours Start 2024.04.09 @ 17:50:29 End 2024.04.09 @ 20:13:59 Sessions 2 Manual Loads 0 Difficulty Rogue Special Mode None Game No. 19 Rogue 19 Adventurer 0 Explorer 0 Win Type - Total 0 Types 0/0/0/0/0/0/0/0/0 Lore% 15 Gallery% 12 Achievement% 16 Wizard Run 0 Options --------- Layout 0 ASCII 0 Keyboard 1 Movement Numpad Keybinds 0 Fullscreen 1 Font 18/SmallcapsGlow Map View 76x50 Zoom Use 0% Tactical HUD 1 Map Filters NONE Filters NONE Steam 1 RUN: 571a5294-e0dc-43d9-81c4-ff8436901a8e